Cogmind - Beta 14 --- EXPLORER MODE // 2024.10.07 @ 12:23:57 Player: mrjoebobfred Result: Self-destructed Performance ------------- Evolutions (2) 1000 Regions Visited (4) 800 Robots Destroyed (41) 205 Value Destroyed (1034) 1034 Prototype IDs (15) 300 Alien Tech Used (0) 0 Bonus (0) 0 TOTAL SCORE: 3339 Bonus ------- None Cogmind --------- Core Integrity 550/550 Matter 254/300 Energy 265/265 System Corruption 0% Temperature Cool (0) Movement Treading (320) Ox2 Location -8/Materials Parts ------- > --- POWER (1) -------- Improved Ion Engine > --- PROPULSION (6) --- Light Treads Light Treads > --- UTILITY (3) ------ Huge Storage Unit Salvage Targeting Computer Light Armor Plating > --- WEAPON (2) ------- Subdweller Machine Gun Subdweller Machine Gun > --- INVENTORY (25) --- Light Treads High-capacity Battery (250) Structural Scanner Salvage Targeting Computer Tower Shield Shield Generator Makeshift System Restoration Module Plasma Cutter Multitool SUBCON Basin (Full) Peak State ------------ > --- POWER ------------ Improved Ion Engine > --- PROPULSION ------- Light Treads Light Treads > --- UTILITY ---------- Huge Storage Unit Salvage Targeting Computer Light Armor Plating > --- WEAPON ----------- Subdweller Machine Gun Subdweller Machine Gun > --- INVENTORY -------- Light Treads High-capacity Battery Structural Scanner Salvage Targeting Computer Tower Shield Shield Generator Makeshift System Restoration Module Plasma Cutter Multitool SUBCON Basin [Rating: 33] Favorites ----------- Power Improved Ion Engine Engine Improved Ion Engine Power Core Light Nuclear Core Propulsion Light Treads Treads Light Treads Utility Large Storage Unit Device Structural Scanner Storage Large Storage Unit Processor Salvage Targeting Computer Protection Light Armor Plating Weapon Subdweller Machine Gun Energy Gun EM Pulse Gun Ballistic Gun Subdweller Machine Gun Launcher Grenade Launcher Special Melee Weapon Datajack Build | -11 -10 -10 -10 -8 ------- Run | Yrd Mat Min Sub Mat Slots Evolved 5 | . 1 . . 4 Power . | . . . . . Propulsion 4 | . . . . 4 Utility 1 | . 1 . . . Weapon . | . . . . . Parts Attached 41 | 7 13 4 17 . Power 4 | 1 1 . 2 . Engine 3 | 1 . . 2 . Core 1 | . 1 . . . Reactor . | . . . . . Propulsion 5 | 2 . . 3 . Treads 5 | 2 . . 3 . Leg . | . . . . . Wheel . | . . . . . Hover . | . . . . . Flight . | . . . . . Utility 15 | 2 2 3 8 . Device 5 | . 1 1 3 . Storage 3 | 1 1 . 1 . Processor 2 | . . 1 1 . Hackware . | . . . . . Protection 5 | 1 . 1 3 . Artifact . | . . . . . Weapon 17 | 2 10 1 4 . Energy Gun 8 | 2 6 . . . Energy Cannon . | . . . . . Ballistic Gun 5 | . . 1 4 . Ballistic Cannon . | . . . . . Launcher 1 | . 1 . . . Special Weapon . | . . . . . Impact Weapon . | . . . . . Slashing Weapon . | . . . . . Piercing Weapon . | . . . . . Special Melee Weapon 3 | . 3 . . . Unidentified Prototypes . | . . . . . Parts Lost 3 | . . . 3 . Power 1 | . . . 1 . Propulsion 1 | . . . 1 . Utility . | . . . . . Weapon 1 | . . . 1 . Highest Loss Streak 2 | . . . 2 . To Critical Strikes . | . . . . . Average Slot Usage (%) 99 | . 97 100 99 . Engine 8 | . 11 . 9 . Core 3 | . . 12 2 . Treads 24 | . 25 25 24 . Device 7 | . 9 8 6 . Storage 12 | . 12 12 12 . Processor 7 | . . 3 12 . Protection 8 | . 12 12 5 . Energy Gun 10 | . 21 21 2 . Ballistic Gun 13 | . . 3 22 . Peak Build Rating 33 | 7 12 13 33 . Average Rating 17 | 5 9 12 22 . On Entrance 12 | . 7 12 12 33 Naked Turns . | . . . . . Heaviest Build 98 | 22 33 33 98 . Greatest Support 40 | 40 40 40 40 . Greatest Overweight (x) 2 | . . . 2 . Average Overweight (x) . | . . . . . Largest Inventory Capacity 25 | 10 15 15 25 . Average Capacity 17 | 9 14 15 19 . Most Carried 25 | . 14 15 25 . Average Carried 16 | . 9 14 19 . Final Capacity 25 | 10 15 15 25 25 Final Carried 25 | . 14 15 25 25 Class Distribution -------------------- 56% | Hacker-Mutant 43% | Scavenger-Mutant Dominant Class ---------------- Hacker-Mutant | -10/Materials Hacker-Mutant | -10/Mines Scavenger-Mutant | -10/Subcaves Scavenger-Mutant | -8/Materials Resources | -11 -10 -10 -10 -8 ----------- Run | Yrd Mat Min Sub Mat Matter Collected 824 | 208 232 40 344 . Remotely . | . . . . . Salvage Created 1484 | . 588 219 677 . Parts 103 | . 42 13 48 . Haulers Intercepted 2 | . 2 . . . Recyclers Shooed . | . . . . . Parts Field Recycled . | . . . . . Retrieved Matter . | . . . . . Parts Self-Destructed . | . . . . . Prevented . | . . . . . Kills | -11 -10 -10 -10 -8 ------- Run | Yrd Mat Min Sub Mat Combat Hostiles Destroyed 30 | . 9 4 17 . Guns 26 | . 6 3 17 . AOE 3 | . 2 1 . . Classes Destroyed 9 | . 6 1 2 . Worker 3 | . 3 . . . Builder 3 | . 3 . . . Tunneler 1 | . . 1 . . Hauler 2 | . 2 . . . Watcher 2 | . 2 . . . Swarmer 8 | . 4 . 4 . Grunt 9 | . 5 4 . . Sentry 1 | . . . 1 . Subdweller 12 | . . . 12 . Best Kill Streak 4 | . 3 2 4 . Combat Bots Only 4 | . 2 2 4 . Max Kills in Single Turn 2 | . 2 1 1 . Gunslinging . | . . . . . Exploded 1 | . 1 1 . . Melee . | . . . . . Uniques/NPCs Destroyed . | . . . . . Combat | -11 -10 -10 -10 -8 -------- Run | Yrd Mat Min Sub Mat Hostile Shots Fired 144 | . 28 5 111 . Missed 46 | . 9 2 35 . Damage Taken 1005 | . 151 22 832 . Core 222 | . . . 222 . Absorbed by Shields . | . . . . . Ignored by Resistances 611 | . 92 14 505 . Regen/Repaired (Parts) 31 | . 31 . . . Core Remaining (%) 55 | 100 . . 11 . Volleys Fired 113 | . 33 8 72 . Largest 2 | . 2 2 2 . Hottest 100 | . 100 80 60 . Shots Fired 206 | . 62 16 128 . Gun 202 | . 58 16 128 . Cannon . | . . . . . Launcher 4 | . 4 . . . Special . | . . . . . Kinetic 107 | . . . 107 . Thermal 4 | . 4 . . . Explosive 4 | . 4 . . . Electromagnetic 91 | . 54 16 21 . Robot Hit Streak 60 | . 18 18 60 . Robot Miss Streak 2 | . 2 1 2 . Penetration Max . | . . . . . Secondary Targets 2 | . 1 . 1 . Max Gunslinging Chain 1 | . 1 . 1 . Shots Hit Robots 150 | . 46 14 90 . Core Hits 59 | . 22 8 29 . Critical Kills . | . . . . . Critical Parts Destroyed . | . . . . . Critical Strikes 1 | . 1 . . . Burn 1 | . 1 . . . Melee Attacks . | . . . . . Impact . | . . . . . Slashing . | . . . . . Piercing . | . . . . . Sneak Attacks . | . . . . . Combat Hostiles . | . . . . . Follow-up Attacks . | . . . . . Damage Inflicted 2448 | . 873 295 1280 . Guns 2153 | . 666 207 1280 . Cannons . | . . . . . Explosions 269 | . 199 70 . . Melee . | . . . . . Ramming 26 | . 8 18 . . Kinetic 1101 | . . . 1101 . Thermal 138 | . 68 70 . . Explosive 169 | . 169 . . . Electromagnetic 1014 | . 628 207 179 . Impact . | . . . . . Slashing . | . . . . . Piercing . | . . . . . Highest Corruption . | . . . . . Average Corruption . | . . . . . Corruption Purged . | . . . . . Corruption Blocked . | . . . . . Overload Shots . | . . . . . Overflow Damage 4 | . 4 . . . Projectiles . | . . . . . Explosions 4 | . 4 . . . Melee . | . . . . . Knockbacks . | . . . . . Impact . | . . . . . Kinetic . | . . . . . Secondary . | . . . . . Self-Inflicted Damage 14 | . 14 . . . Shots 1 | . 1 . . . Rammed 4 | . 1 3 . . Targets Rammed 4 | . 1 3 . . Kicked . | . . . . . Crushed . | . . . . . Highest Temperature 218 | . 218 72 . . Average Temperature 56 | . 62 34 . . Received Heat Transfer 285 | . 90 21 174 . Siege Activations . | . . . . . Robots Corrupted 1 | . 1 . . . Combat Hostiles 1 | . 1 . . . Parts Fried 7 | . 6 1 . . Impact Corruptions . | . . . . . Robots Melted . | . . . . . Combat Hostiles . | . . . . . Parts Melted 1 | . 1 . . . Heat Transferred 335 | . 235 100 . . Parts Sabotaged . | . . . . . Parts Stolen . | . . . . . Parts Stripped . | . . . . . Power Chain Reactions 2 | . 1 1 . . Alert | -11 -10 -10 -10 -8 ------- Run | Yrd Mat Min Sub Mat Peak Influence 143 | . 143 56 . . Initial . | . . . . . Average 34 | . 49 18 . . Maximum Alert Level . | . . . . . Low Security (%) 100 | 100 100 100 . . Level 1 . | . . . . . Level 2 . | . . . . . Level 3 . | . . . . . Level 4 . | . . . . . Level 5 . | . . . . . High Security . | . . . . . Max Security . | . . . . . Squads Dispatched 1 | . 1 . . . Investigation 1 | . 1 . . . Extermination . | . . . . . Reinforcement . | . . . . . Assault . | . . . . . Garrison . | . . . . . Intercept . | . . . . . Searches Triggered . | . . . . . Construction Impeded . | . . . . . Haulers Reinforced . | . . . . . Active Scanning Responses . | . . . . . Cargo Convoy Interrupts . | . . . . . Stealth | -11 -10 -10 -10 -8 --------- Run | Yrd Mat Min Sub Mat Distress Signals . | . . . . . Communications Jammed . | . . . . . Distress Signals . | . . . . . Times Spotted 32 | . 12 3 17 . Peak Tracking Total 6 | . 2 2 6 . Tactical Retreats 3 | . 1 . 2 . Traps | -11 -10 -10 -10 -8 ------- Run | Yrd Mat Min Sub Mat Traps Triggered . | . . . . . Indirectly . | . . . . . Trap Hack Attempts 61 | . 61 . . . Triggered . | . . . . . Disarmed 2 | . 2 . . . Reprogrammed 12 | . 12 . . . Reused 2 | . 2 . . . Traps Extracted . | . . . . . Installed . | . . . . . Triggered 2 | . 2 . . . Machines | -11 -10 -10 -10 -8 ---------- Run | Yrd Mat Min Sub Mat Machines Disabled 2 | . . 1 1 . Max in Single Turn 1 | . . 1 1 . Machines Repaired . | . . . . . Machines Dismantled . | . . . . . Machines Sabotaged . | . . . . . Overloaded Fab Kills . | . . . . . Hacking | -11 -10 -10 -10 -8 --------- Run | Yrd Mat Min Sub Mat Machines Accessed 14 | . 11 . 3 . Terminals 8 | . 8 . . . Fabricators . | . . . . . Repair Stations 1 | . 1 . . . Recycling Units 2 | . 2 . . . Scanalyzers . | . . . . . Garrison Access . | . . . . . Total Hacks 44 | . 41 . 3 . Successful 37 | . 34 . 3 . Failed 7 | . 7 . . . Catastrophic . | . . . . . Database Lockouts . | . . . . . Manual 30 | . 30 . . . Terminals 33 | . 33 . . . Fabricators . | . . . . . Repair Stations 4 | . 4 . . . Recycling Units 4 | . 4 . . . Scanalyzers . | . . . . . Garrison Access . | . . . . . Terminal Hacks 22 | . 19 . 3 . Robot Analysis 8 | . 8 . . . Prototype ID Bank 4 | . 4 . . . Open Door 1 | . . . 1 . Locate Traps 5 | . 5 . . . Reprogram Traps 1 | . 1 . . . Zone Layout 1 | . 1 . . . Derelict Proto ID Bank 1 | . . . 1 . Release Object 1 | . . . 1 . Fabricator Hacks . | . . . . . Repair Station Hacks 4 | . 4 . . . Scan Component 2 | . 2 . . . Repair 2 | . 2 . . . Recycling Unit Hacks 1 | . 1 . . . Retrieve Components 1 | . 1 . . . Scanalyzer . | . . . . . Garrison Access Hacks . | . . . . . Unauthorized Hacks 10 | . 10 . . . Terminals 9 | . 9 . . . Botnet 2 | . 2 . . . Skim 7 | . 7 . . . Fabricators . | . . . . . Repair Stations . | . . . . . Recycling Units 1 | . 1 . . . Tunnel 1 | . 1 . . . Scanalyzers . | . . . . . Garrison Access . | . . . . . Data Cores Recovered . | . . . . . Used . | . . . . . Hacking Detections 10 | . 10 . . . Full Trace Events 1 | . 1 . . . Feedback Events . | . . . . . Feedback Blocked . | . . . . . Robot Schematics Acquired . | . . . . . Robots Built . | . . . . . Authchips . | . . . . . Time . | . . . . . Total Robot Build Rating . | . . . . . Part Schematics Acquired . | . . . . . Parts Built . | . . . . . Authchips . | . . . . . Time . | . . . . . Total Part Build Rating . | . . . . . Parts Repaired 2 | . 2 . . . Time 79 | . 79 . . . Parts Recycled . | . . . . . Recycled Matter . | . . . . . Retrieved Matter . | . . . . . Retrieved Components 2 | . 2 . . . Parts Scanalyzed . | . . . . . Part Schematics Acquired . | . . . . . Parts Damaged . | . . . . . Bothacking | -11 -10 -10 -10 -8 ------------ Run | Yrd Mat Min Sub Mat Used RIF Installer . | . . . . . Robots Hacked . | . . . . . Non-combat . | . . . . . Combat . | . . . . . Robot Hacks Applied . | . . . . . Relay Couplers Released . | . . . . . Fabnet Peak Effective % . | . . . . . Robots Rewired . | . . . . . Allies Hacked . | . . . . . Hacks Repelled . | . . . . . Allies | -11 -10 -10 -10 -8 -------- Run | Yrd Mat Min Sub Mat Total Allies 1 | . . 1 . . Largest Group 1 | . . 1 . . Highest-Rated Group 31 | . . 31 . . Highest-Rated Ally 31 | . . 31 . . Total Orders . | . . . . . Ally Attacks . | . . . . . Total Damage . | . . . . . Kills . | . . . . . Allies Corrupted . | . . . . . Allies Melted . | . . . . . Intel | -11 -10 -10 -10 -8 ------- Run | Yrd Mat Min Sub Mat Robot Analysis Total 8 | . 8 . . . Derelict Logs Recovered 1 | . . . 1 . Drone Launches . | . . . . . Drone Recoveries . | . . . . . Exploration | -11 -10 -10 -10 -8 ------------- Run | Yrd Mat Min Sub Mat Turns Passed 7019 | 67 1601 1311 4040 . Spaces Moved 3406 | 37 825 729 1815 . Core 1 | 1 . . . . Treads 3405 | 36 825 729 1815 . Legs . | . . . . . Wheels . | . . . . . Hover . | . . . . . Flight . | . . . . . Fastest Speed 50 | 50 160 160 160 . Average Speed 186 | 157 160 160 209 . Slowest Speed 320 | 160 160 160 320 . Overloaded Moves . | . . . . . Propulsion Burnouts . | . . . . . Robots Hopped . | . . . . . Cave-ins Triggered . | . . . . . Exploration Rate (%) 55 | 3 96 98 80 1 Regions Visited 4 Branch Regions 2 Pre-discovered Areas 4 | . 3 . 1 . Known Exits Taken 4 | 1 1 1 1 . Unknown Exits Taken . | . . . . . Scrap Searched 12 | . . 1 11 . Spaces Dug . | . . . . . Terrain Destroyed 24 | . 22 2 . . Melee . | . . . . . Projectile . | . . . . . AOE 24 | . 22 2 . . Terrain Rammed . | . . . . . Walls Destroyed . | . . . . . Machines Disabled . | . . . . . Actions | -11 -10 -10 -10 -8 --------- Run | Yrd Mat Min Sub Mat Total 3866 | 43 1040 856 1927 . Wait 200 | . 89 106 5 . Move 3402 | 36 824 728 1814 . Hop . | . . . . . Pick Up 24 | . 15 4 5 . Fast Attach 19 | 7 5 . 7 . Attach 2 | . 1 . 1 . Detach 1 | . 1 . . . Swap 20 | . 7 4 9 . Drop 20 | . 3 3 14 . Fire 113 | . 33 8 72 . Melee . | . . . . . Ram . | . . . . . Kick . | . . . . . Crush 4 | . 1 3 . . Escape Stasis . | . . . . . Rewire . | . . . . . Trap 61 | . 61 . . . Miscellaneous . | . . . . . Route ------- -11/Scrapyard -10/Materials (discovered 4 exits: *Mat x3 / *Min) -10/Mines (discovered 4 exits: *Mat x2 / *Exi / *Sub) -10/Subcaves (discovered 2 exits: *Mat x2) -8/Materials History --------- Turn | Location | Event 22 | -11/Scrapyard | Identified exit to Materials 22 | -11/Scrapyard | Discovered exit to Materials (range 15) 68 | -11/Scrapyard | Entered Materials 68 | -10/Materials | Evolved 1 slot: Utility x1 201 | -10/Materials | Identified exit to Materials 201 | -10/Materials | Discovered exit to Materials (range 6) 326 | -10/Materials | Build established: Hacker-Mutant 564 | -10/Materials | Identified exit to Mines 564 | -10/Materials | Discovered exit to Mines (range 12) 903 | -10/Materials | Discovered exit to Materials (range 5) 917 | -10/Materials | Loaded intel: 2 recycling unit locations 977 | -10/Materials | Learned Storage security intel 1093 | -10/Materials | Learned location of Subcaves (-10) 1111 | -10/Materials | Learned location of Recycling (-9) 1137 | -10/Materials | Loaded intel: 1 repair station location 1150 | -10/Materials | Discovered exit to Materials (range 4) 1175 | -10/Materials | Learned 2 Storage zone layouts 1222 | -10/Materials | Learned Materials emergency access door positions 1280 | -10/Materials | Loaded intel: 7 trap records 1534 | -10/Materials | Repaired Corrupted Lgt. Nuclear Core 1560 | -10/Materials | Repaired EM Pulse Gun 1669 | -10/Materials | Entered Mines 1711 | -10/Mines | Deemed a non-threat by the Exiles lab entrance 1711 | -10/Mines | Identified exit to Exiles 1711 | -10/Mines | Discovered exit to Exiles (range 5) 1779 | -10/Mines | Identified exit to Subcaves 1779 | -10/Mines | Discovered exit to Subcaves (range 6) 2267 | -10/Mines | Received a Mining Laser from a helpful Derelict 2584 | -10/Mines | Found a hidden stash of uninstalled traps 2590 | -10/Mines | Discovered exit to Materials (range 8) 2616 | -10/Mines | Found DCF Scrap (13 items) 2630 | -10/Mines | Discovered exit to Materials (range 5) 2980 | -10/Mines | Entered Subcaves 3055 | -10/Subcaves | A swath of the cavern ceiling suddenly collapsed 3193 | -10/Subcaves | Shifting Twisted Machinery released Sub. Beam Cannon 3197 | -10/Subcaves | Shifting Twisted Machinery released Sub. Monowheel 3313 | -10/Subcaves | A swath of the cavern ceiling suddenly collapsed 3463 | -10/Subcaves | Learned location of Zion (-7) 3463 | -10/Subcaves | Met a Zionite searching for "candidates" 3741 | -10/Subcaves | Core integrity fell below 50% 4074 | -10/Subcaves | Identified exit to Materials 4074 | -10/Subcaves | Discovered exit to Materials (range 9) 4228 | -10/Subcaves | Discovered exit to Materials (range 13) 4263 | -10/Subcaves | Disturbed a concealed Subdweller 4268 | -10/Subcaves | Build established: Scavenger-Mutant 4350 | -10/Subcaves | Learned Materials machine intel 4451 | -10/Subcaves | Disturbed a concealed Subdweller 4509 | -10/Subcaves | Shifting Twisted Machinery released Sub. Monowheel 4578 | -10/Subcaves | Shifting Twisted Machinery released Sub. Laser 5173 | -10/Subcaves | Found SUBCON Basin 5387 | -10/Subcaves | Core integrity fell below 20% 6108 | -10/Subcaves | Visited 4L-MR0's lab 6143 | -10/Subcaves | Found Tower Shield 7020 | -10/Subcaves | Entered Materials 7020 | -8/Materials | Evolved 4 slots: Propulsion x4 7020 | -8/Materials | Self-destructed Last Messages --------------- "Damn Subs sneaking around stealing my stuff." 06132_ Testing Chamber breached. 06138_ 4L-MR0 mumbles: "I'm surprised some of them are even willing to come in here given their fear of my usual visitors." 06142_ Dropped Imp. Terrain Scanner. 06142_ Dropped Terrain Scan Processor. 06143_ Acquired Tower Shield. 06150_ 4L-MR0 mumbles: "Who knows where that last prototype ended up, probably tossed aside somewhere as if it were useless junk..." 06152_ 4L-MR0: "Uhh... I didn't see nothing, but you'd better hope DW-4LL doesn't find out you took that." 06152_ Subatomizers dissect the Terrain Scan Processor. 06764_ XQ-6CN(R) destroyed. PARAMETERS=PROPULSION+4 LOCATION=MATERIALS GOAL=ESCAPE Map ----- +----------------------------------------------------+ | ????????????????????????????????? | | ????????????????????????????????? | | ????????????????????????????????? | | ????????????????????????????????? | | ????????????????????????????????? | | ????????????????????????????????? | | ????????????????????????????????? | | ????????????????????????????????? | | ????????????????????????????????? | | ????????????????????????????????? | | ????????????????????????????????? | | ????????????????????????????????? | | ????????????????????????????????? | | ????????????????????????????????? | | ????????????????????????????????? | | ????????????????????????????????? | | ????????????????????????????????? | | ????????????????????????????????? | | ????????????????????????????????? | | ????????????????????????????????? | | ????????????????????????????????? | | ????????????????????????????????? | | ????????????????????????????????? | | ?????????????###+###########????? | | ???????????? T #????? | | ?????????? @ #????? | | ?????????? #????? | | ?????????? %############????? | | ????????????????????????????????? | | ????????????????????????????????? | | ????????????????????????????????? | | ????????????????????????????????? | | ????????????????????????????????? | | ????????????????????????????????? | | ????????????????????????????????? | | ????????????????????????????????? | | ????????????????????????????????? | | ????????????????????????????????? | | ????????????????????????????????? | | ????????????????????????????????? | | ????????????????????????????????? | | ????????????????????????????????? | | ????????????????????????????????? | | ????????????????????????????????? | | ????????????????????????????????? | | ????????????????????????????????? | | ????????????????????????????????? | | ????????????????????????????????? | | ????????????????????????????????? | | ????????????????????????????????? | +----------------------------------------------------+ Best States ------------- Heat Dissipation 25 Energy Generation 15 Energy Capacity 265 Matter Stores 300 Matter Capacity 300 Sight Range 16 Terrain Scan Density 10 Armor Coverage 150 Resistance: KI 35 Resistance: TH 35 Resistance: EX 35 Resistance: EM 35 Resistance: I 35 Resistance: S 35 Resistance: P 35 Evasion (%) 40 Recoil Reduction 2 Salvage Targeting 1 Offensive Hacking 20 Item Schematics ----------------- None Robot Schematics ------------------ None Fabricated ------------ Nothing Alien Tech Used ----------------- None Achievements -------------- None Challenges ------------ None Game ------ Seed WardroneSegregatorShielding Manual? 0 Play Time 00:31:44 Cumulative 509.6 hours Start 2024.10.07 @ 11:49:21 End 2024.10.07 @ 12:23:57 Sessions 1 Manual Loads 0 Difficulty Explorer Special Mode None Game No. 69 Rogue 6 Adventurer 6 Explorer 57 Win Type - Total 35 Types 13/7/2/5/1/1/1/3/2 Lore% 85 Gallery% 85 Achievement% 90 Wizard Run 0 Options --------- Layout 1 ASCII 0 Keyboard 0 Movement Mouse Keybinds 0 Fullscreen 1 Font 24/Smallcaps Map View 50x35 Zoom Use 0% Tactical HUD 1 Map Filters NONE Filters NONE Steam 1 RUN: c1dd592c-9b58-44eb-a5ea-29d811213a2d